[Event "*** Titled Tuesday Blitz"]
[Site "Chess.com"]
[Date "2020.05.19"]
[Round "1"]
[White "Storchnoi"]
[Black "Aradej"]
[Result "0-1"]
[WhiteElo "1927"]
[BlackElo "2471"]
[TimeControl "180+1"]
[EndTime "12:04:16 PDT"]
[Termination "Aradej won by checkmate"]

1. d4 {[%clk 0:03:00.9]} 1... d6 {[%clk 0:02:58.5]} 2. Nf3 {[%clk 0:02:58.9]}
2... g6 {[%clk 0:02:58.3]} 3. c4 {[%clk 0:02:58.8]} 3... Bg7 {[%clk 0:02:58.5]}
4. Nc3 {[%clk 0:02:58.9]} 4... Nf6 {[%clk 0:02:57.6]} 5. e4 {[%clk 0:02:59]}
5... O-O {[%clk 0:02:57.7]} 6. Be2 {[%clk 0:02:59.2]} 6... c5 {[%clk 0:02:58]}
7. O-O {[%clk 0:02:59.2]} 7... cxd4 {[%clk 0:02:57.6]} 8. Nxd4 {[%clk
0:02:59.4]} 8... Nc6 {[%clk 0:02:58.1]} 9. Be3 {[%clk 0:02:58.4]} 9... Bd7
{[%clk 0:02:58]} 10. f3 {[%clk 0:02:57.1]} 10... a5 {[%clk 0:02:58.3]} 11. Qd2
{[%clk 0:02:56.7]} 11... Nxd4 {[%clk 0:02:58.3]} 12. Bxd4 {[%clk 0:02:56.3]}
12... Bc6 {[%clk 0:02:55.5]} 13. Rfd1 {[%clk 0:02:53.8]} 13... Nd7 {[%clk
0:02:55.3]} 14. Bxg7 {[%clk 0:02:52.7]} 14... Kxg7 {[%clk 0:02:54.7]} 15. Nd5
{[%clk 0:02:46]} 15... Bxd5 {[%clk 0:02:53.1]} 16. exd5 {[%clk 0:02:43.7]} 16...
Re8 {[%clk 0:02:45.3]} 17. f4 {[%clk 0:02:41.7]} 17... a4 {[%clk 0:02:42.1]} 18.
Rf1 {[%clk 0:02:37.7]} 18... Nf6 {[%clk 0:02:34.9]} 19. Bd3 {[%clk 0:02:32.4]}
19... Qb6+ {[%clk 0:02:34.2]} 20. Kh1 {[%clk 0:02:30.4]} 20... Qd4 {[%clk
0:02:28.6]} 21. f5 {[%clk 0:02:24.7]} 21... b5 {[%clk 0:02:25.9]} 22. Rf4 {[%clk
0:02:23.6]} 22... Qc5 {[%clk 0:02:19.9]} 23. Raf1 {[%clk 0:02:11.4]} 23... g5
{[%clk 0:02:14.1]} 24. R4f2 {[%clk 0:02:03.8]} 24... h6 {[%clk 0:02:13.9]} 25.
b3 {[%clk 0:02:00.4]} 25... axb3 {[%clk 0:02:12.6]} 26. axb3 {[%clk 0:02:00.8]}
26... bxc4 {[%clk 0:02:12.8]} 27. bxc4 {[%clk 0:01:58.8]} 27... Qd4 {[%clk
0:02:13.3]} 28. Qe2 {[%clk 0:01:54.2]} 28... Ra3 {[%clk 0:02:12.4]} 29. Rf3
{[%clk 0:01:48.7]} 29... Rb8 {[%clk 0:02:05.2]} 30. Bb1 {[%clk 0:01:23.6]} 30...
Rb2 {[%clk 0:02:00.7]} 31. Qxe7 {[%clk 0:01:17.9]} 31... Rxf3 {[%clk 0:01:58.2]}
32. gxf3 {[%clk 0:01:15.8]} 32... Qxc4 {[%clk 0:01:58.2]} 33. Be4 {[%clk
0:01:10.6]} 33... Qxf1# {[%clk 0:01:57]} 0-1

[Event "*** Titled Tuesday Blitz"]
[Site "Chess.com"]
[Date "2020.05.19"]
[Round "1"]
[White "NikolaGry"]
[Black "PenguinPacks"]
[Result "1-0"]
[WhiteElo "2603"]
[BlackElo "2304"]
[TimeControl "180+1"]
[EndTime "12:04:19 PDT"]
[Termination "NikolaGry won by resignation"]

1. e4 {[%clk 0:02:59]} 1... e5 {[%clk 0:02:57.7]} 2. Ne2 {[%clk 0:02:53]} 2...
Nc6 {[%clk 0:02:58.6]} 3. Nbc3 {[%clk 0:02:52.3]} 3... Bc5 {[%clk 0:02:58.7]} 4.
Na4 {[%clk 0:02:52.1]} 4... Be7 {[%clk 0:02:57.7]} 5. d4 {[%clk 0:02:51.7]} 5...
exd4 {[%clk 0:02:56.1]} 6. Nxd4 {[%clk 0:02:51.8]} 6... Nf6 {[%clk 0:02:52]} 7.
Nxc6 {[%clk 0:02:48.6]} 7... bxc6 {[%clk 0:02:50.9]} 8. e5 {[%clk 0:02:48.7]}
8... Ne4 {[%clk 0:02:47]} 9. Qg4 {[%clk 0:02:36.6]} 9... d5 {[%clk 0:02:35.7]}
10. Qxg7 {[%clk 0:02:32.2]} 10... Rf8 {[%clk 0:02:32.3]} 11. Be3 {[%clk
0:02:15.5]} 11... Bf5 {[%clk 0:02:21.9]} 12. O-O-O {[%clk 0:01:58.8]} 12... Bg6
{[%clk 0:02:07.2]} 13. Bd3 {[%clk 0:01:38.1]} 13... Bg5 {[%clk 0:01:56.3]} 14.
Bxe4 {[%clk 0:01:24.4]} 14... Bxe3+ {[%clk 0:01:52.7]} 15. fxe3 {[%clk
0:01:22.3]} 15... Bxe4 {[%clk 0:01:51.4]} 16. Nc5 {[%clk 0:01:16.1]} 16... Qe7
{[%clk 0:01:51.1]} 17. Nxe4 {[%clk 0:01:14.7]} 17... dxe4 {[%clk 0:01:52]} 18.
Qh6 {[%clk 0:01:07]} 18... Qxe5 {[%clk 0:01:43.2]} 19. Qxc6+ {[%clk 0:01:04.7]}
19... Ke7 {[%clk 0:01:33.2]} 20. Rd7+ {[%clk 0:01:03.7]} 1-0

[Event "*** Titled Tuesday Blitz"]
[Site "Chess.com"]
[Date "2020.05.19"]
[Round "1"]
[White "MartinCerveny"]
[Black "Vaathi_Coming"]
[Result "0-1"]
[WhiteElo "2447"]
[BlackElo "2882"]
[TimeControl "180+1"]
[EndTime "12:04:21 PDT"]
[Termination "Vaathi_Coming won by resignation"]

1. d4 {[%clk 0:03:00.1]} 1... d5 {[%clk 0:02:59.6]} 2. c4 {[%clk 0:02:59.3]}
2... e6 {[%clk 0:02:59.3]} 3. Nc3 {[%clk 0:02:59.3]} 3... Nf6 {[%clk 0:02:59.4]}
4. cxd5 {[%clk 0:02:59.6]} 4... Nxd5 {[%clk 0:03:00.3]} 5. e4 {[%clk 0:02:58.3]}
5... Nxc3 {[%clk 0:03:00.5]} 6. bxc3 {[%clk 0:02:59.2]} 6... c5 {[%clk
0:03:01.3]} 7. Nf3 {[%clk 0:02:59.3]} 7... cxd4 {[%clk 0:03:01.5]} 8. cxd4
{[%clk 0:03:00.2]} 8... Bb4+ {[%clk 0:03:02.1]} 9. Bd2 {[%clk 0:03:00.9]} 9...
Bxd2+ {[%clk 0:03:02.8]} 10. Qxd2 {[%clk 0:03:01.5]} 10... O-O {[%clk
0:03:03.7]} 11. Be2 {[%clk 0:03:01.7]} 11... b6 {[%clk 0:03:02.4]} 12. O-O
{[%clk 0:03:00.9]} 12... Bb7 {[%clk 0:03:01.5]} 13. Qe3 {[%clk 0:02:57.5]} 13...
Nd7 {[%clk 0:03:01.3]} 14. e5 {[%clk 0:02:57.2]} 14... Qe7 {[%clk 0:02:53]} 15.
Rfc1 {[%clk 0:02:54.1]} 15... Rfc8 {[%clk 0:02:52.9]} 16. h4 {[%clk 0:02:53.8]}
16... h6 {[%clk 0:02:40.4]} 17. Nd2 {[%clk 0:02:41.8]} 17... Qxh4 {[%clk
0:02:38.3]} 18. Bf3 {[%clk 0:02:27]} 18... Bxf3 {[%clk 0:02:34.2]} 19. Nxf3
{[%clk 0:02:27.9]} 19... Qd8 {[%clk 0:02:33.4]} 20. g4 {[%clk 0:02:19]} 20... b5
{[%clk 0:02:22.6]} 21. g5 {[%clk 0:02:14.7]} 21... h5 {[%clk 0:02:22.4]} 22. Nd2
{[%clk 0:02:09.3]} 22... Nb6 {[%clk 0:02:19.9]} 23. Ne4 {[%clk 0:02:08.4]} 23...
Qd5 {[%clk 0:02:10.2]} 24. Rd1 {[%clk 0:01:54]} 24... Nd7 {[%clk 0:02:04.6]} 25.
Rd2 {[%clk 0:01:47.9]} 25... Nf8 {[%clk 0:02:03.2]} 26. Kg2 {[%clk 0:01:44.4]}
26... Ng6 {[%clk 0:02:03.1]} 27. Rh1 {[%clk 0:01:42.8]} 27... h4 {[%clk
0:02:02]} 28. f3 {[%clk 0:01:36.3]} 28... Rc6 {[%clk 0:01:55.6]} 29. Kh3 {[%clk
0:01:34.9]} 29... Rac8 {[%clk 0:01:53.3]} 30. Kg4 {[%clk 0:01:33.1]} 30... Rc2
{[%clk 0:01:50.9]} 31. Nd6 {[%clk 0:01:26.9]} 31... Rxd2 {[%clk 0:01:47.2]} 32.
Qxd2 {[%clk 0:01:26.6]} 32... Nxe5+ {[%clk 0:01:47.5]} 0-1

[Event "*** Titled Tuesday Blitz"]
[Site "Chess.com"]
[Date "2020.05.19"]
[Round "1"]
[White "JLRHei"]
[Black "BeanScreen"]
[Result "1-0"]
[WhiteElo "2343"]
[BlackElo "2610"]
[TimeControl "180+1"]
[EndTime "12:04:35 PDT"]
[Termination "JLRHei won by resignation"]

1. d4 {[%clk 0:03:00.8]} 1... d5 {[%clk 0:03:00]} 2. c4 {[%clk 0:03:01.7]} 2...
dxc4 {[%clk 0:03:00.9]} 3. Nf3 {[%clk 0:03:02.1]} 3... a6 {[%clk 0:03:00.8]} 4.
g3 {[%clk 0:03:02.6]} 4... Nf6 {[%clk 0:03:00.5]} 5. Bg2 {[%clk 0:03:03.5]} 5...
e6 {[%clk 0:03:00.6]} 6. O-O {[%clk 0:03:03.8]} 6... c5 {[%clk 0:03:00.7]} 7.
dxc5 {[%clk 0:02:58.2]} 7... Qxd1 {[%clk 0:02:59.4]} 8. Rxd1 {[%clk 0:02:59.1]}
8... Bxc5 {[%clk 0:02:59.5]} 9. Ne5 {[%clk 0:02:57.4]} 9... O-O {[%clk
0:02:53.1]} 10. Nxc4 {[%clk 0:02:56.4]} 10... Nc6 {[%clk 0:02:49.4]} 11. Nc3
{[%clk 0:02:56.6]} 11... Bd7 {[%clk 0:02:46]} 12. Be3 {[%clk 0:02:38.4]} 12...
Bxe3 {[%clk 0:02:42.7]} 13. Nxe3 {[%clk 0:02:39.3]} 13... Rfd8 {[%clk
0:02:41.3]} 14. Na4 {[%clk 0:02:30.8]} 14... Be8 {[%clk 0:02:31.8]} 15. Nc5
{[%clk 0:02:29]} 15... b6 {[%clk 0:02:24.6]} 16. Rxd8 {[%clk 0:02:15.9]} 16...
Rxd8 {[%clk 0:02:25.5]} 17. Nxa6 {[%clk 0:02:16]} 17... Rd2 {[%clk 0:02:25.2]}
18. Rc1 {[%clk 0:02:10.5]} 18... Rxb2 {[%clk 0:02:22.7]} 19. Bxc6 {[%clk
0:02:08.6]} 19... Rxa2 {[%clk 0:02:08.9]} 20. Bxe8 {[%clk 0:02:08.8]} 20... Nxe8
{[%clk 0:02:08.4]} 21. Rc8 {[%clk 0:02:08.8]} 21... Kf8 {[%clk 0:02:03.5]} 22.
Nc7 {[%clk 0:02:04.6]} 22... Ke7 {[%clk 0:02:03.2]} 23. Nxe8 {[%clk 0:01:57.5]}
23... Ra7 {[%clk 0:02:02.2]} 24. Rc7+ {[%clk 0:01:55.9]} 24... Rxc7 {[%clk
0:02:00.8]} 25. Nxc7 {[%clk 0:01:56.8]} 25... Kd6 {[%clk 0:02:01.3]} 26. Na6
{[%clk 0:01:53.5]} 26... b5 {[%clk 0:02:00.9]} 27. Kf1 {[%clk 0:01:48]} 27...
Ke5 {[%clk 0:02:00.8]} 28. Ke1 {[%clk 0:01:45.8]} 28... f5 {[%clk 0:01:59.6]}
29. Kd2 {[%clk 0:01:45.7]} 29... g5 {[%clk 0:01:59.6]} 30. Kc3 {[%clk
0:01:45.6]} 30... h5 {[%clk 0:01:59.4]} 31. Nc7 {[%clk 0:01:44.6]} 31... f4
{[%clk 0:01:54.9]} 32. Nd1 {[%clk 0:01:40.9]} 32... fxg3 {[%clk 0:01:53.8]} 33.
fxg3 {[%clk 0:01:40.2]} 33... Kf5 {[%clk 0:01:52.1]} 34. Nxb5 {[%clk 0:01:37.6]}
34... h4 {[%clk 0:01:51.9]} 35. Nf2 {[%clk 0:01:29.6]} 35... hxg3 {[%clk
0:01:50.2]} 36. hxg3 {[%clk 0:01:30.5]} 36... Ke5 {[%clk 0:01:47.9]} 37. e4
{[%clk 0:01:27.8]} 1-0

[Event "*** Titled Tuesday Blitz"]
[Site "Chess.com"]
[Date "2020.05.19"]
[Round "1"]
[White "Escanor89"]
[Black "Kensei26"]
[Result "1-0"]
[WhiteElo "2564"]
[BlackElo "2266"]
[TimeControl "180+1"]
[EndTime "12:04:37 PDT"]
[Termination "Escanor89 won by resignation"]

1. c4 {[%clk 0:03:00.9]} 1... c5 {[%clk 0:02:55.8]} 2. Nf3 {[%clk 0:02:59.8]}
2... b6 {[%clk 0:02:53.8]} 3. d4 {[%clk 0:02:56.9]} 3... cxd4 {[%clk 0:02:53.6]}
4. Nxd4 {[%clk 0:02:57]} 4... Bb7 {[%clk 0:02:54]} 5. Nc3 {[%clk 0:02:57]} 5...
Nf6 {[%clk 0:02:52.9]} 6. f3 {[%clk 0:02:56.5]} 6... d6 {[%clk 0:02:52.9]} 7. e4
{[%clk 0:02:56.4]} 7... e6 {[%clk 0:02:52.8]} 8. Be3 {[%clk 0:02:56.2]} 8... Be7
{[%clk 0:02:53.2]} 9. Be2 {[%clk 0:02:56.7]} 9... O-O {[%clk 0:02:53.3]} 10. O-O
{[%clk 0:02:56.6]} 10... Nbd7 {[%clk 0:02:52.3]} 11. Qd2 {[%clk 0:02:56.6]}
11... a6 {[%clk 0:02:48.7]} 12. a3 {[%clk 0:02:52.7]} 12... Qc7 {[%clk
0:02:48.7]} 13. Rac1 {[%clk 0:02:51.1]} 13... Rac8 {[%clk 0:02:49]} 14. b4
{[%clk 0:02:50.8]} 14... Qb8 {[%clk 0:02:49.2]} 15. Nb3 {[%clk 0:02:45.4]} 15...
Bd8 {[%clk 0:02:46.7]} 16. Kh1 {[%clk 0:02:45.2]} 16... Bc7 {[%clk 0:02:46.8]}
17. Bg1 {[%clk 0:02:44.9]} 17... Rfd8 {[%clk 0:02:46.7]} 18. Rfd1 {[%clk
0:02:43.5]} 18... Ne5 {[%clk 0:02:37]} 19. Na4 {[%clk 0:02:41.3]} 19... Ba8
{[%clk 0:02:26.1]} 20. Qe3 {[%clk 0:02:27.9]} 20... Ng6 {[%clk 0:02:23.4]} 21.
Nxb6 {[%clk 0:02:24.9]} 21... d5 {[%clk 0:02:12.6]} 22. Nxc8 {[%clk 0:02:13.6]}
22... Bf4 {[%clk 0:02:12.5]} 23. Qb6 {[%clk 0:02:07.8]} 23... Qxc8 {[%clk
0:02:11.3]} 24. cxd5 {[%clk 0:02:00.2]} 24... Bxc1 {[%clk 0:02:11.3]} 25. Rxc1
{[%clk 0:01:59.9]} 25... Qd7 {[%clk 0:02:05.5]} 26. dxe6 {[%clk 0:01:57.2]}
26... Qe8 {[%clk 0:01:42.6]} 27. exf7+ {[%clk 0:01:54.3]} 27... Kxf7 {[%clk
0:01:41.3]} 28. Bc4+ {[%clk 0:01:51.7]} 28... Kf8 {[%clk 0:01:41.3]} 29. Nd4
{[%clk 0:01:33.1]} 29... Nf4 {[%clk 0:01:36.9]} 30. Nf5 {[%clk 0:01:28.9]} 30...
Nd7 {[%clk 0:01:15]} 31. Qd6+ {[%clk 0:01:26]} 1-0

[Event "*** Titled Tuesday Blitz"]
[Site "Chess.com"]
[Date "2020.05.19"]
[Round "1"]
[White "econpower"]
[Black "Gerasimenyuk_Miha"]
[Result "1-0"]
[WhiteElo "2642"]
[BlackElo "2342"]
[TimeControl "180+1"]
[EndTime "12:04:38 PDT"]
[Termination "econpower won by resignation"]

1. c4 {[%clk 0:02:58.2]} 1... c5 {[%clk 0:02:59.5]} 2. g3 {[%clk 0:02:58.1]}
2... Nc6 {[%clk 0:03:00.1]} 3. Bg2 {[%clk 0:02:59]} 3... g6 {[%clk 0:03:00.7]}
4. Nc3 {[%clk 0:02:59.8]} 4... Bg7 {[%clk 0:03:01.4]} 5. e3 {[%clk 0:03:00.7]}
5... d6 {[%clk 0:03:02]} 6. Nge2 {[%clk 0:03:01.2]} 6... Nh6 {[%clk 0:03:02.6]}
7. O-O {[%clk 0:03:01.8]} 7... Nf5 {[%clk 0:03:03.1]} 8. Nf4 {[%clk 0:03:02.2]}
8... h5 {[%clk 0:03:03.3]} 9. h3 {[%clk 0:03:01.4]} 9... e5 {[%clk 0:03:02.9]}
10. Nfd5 {[%clk 0:03:01.1]} 10... Be6 {[%clk 0:03:02.9]} 11. a3 {[%clk
0:03:00.4]} 11... a6 {[%clk 0:03:02.6]} 12. b4 {[%clk 0:02:59]} 12... cxb4
{[%clk 0:03:00.8]} 13. axb4 {[%clk 0:02:59.1]} 13... O-O {[%clk 0:03:01.1]} 14.
Kh2 {[%clk 0:02:58.8]} 14... h4 {[%clk 0:03:00.3]} 15. g4 {[%clk 0:02:58.6]}
15... Nfe7 {[%clk 0:03:01.1]} 16. Rb1 {[%clk 0:02:57.3]} 16... Bxd5 {[%clk
0:02:58.8]} 17. Nxd5 {[%clk 0:02:57]} 17... Nxd5 {[%clk 0:02:58.6]} 18. cxd5
{[%clk 0:02:57.2]} 18... Ne7 {[%clk 0:02:58.3]} 19. f4 {[%clk 0:02:39.7]} 19...
f5 {[%clk 0:02:56.3]} 20. g5 {[%clk 0:02:38.3]} 20... exf4 {[%clk 0:02:56.5]}
21. exf4 {[%clk 0:02:38.1]} 21... Qb6 {[%clk 0:02:53.5]} 22. Qe1 {[%clk
0:02:37.1]} 22... Rae8 {[%clk 0:02:52.1]} 23. Qxh4 {[%clk 0:02:36.7]} 23... Kf7
{[%clk 0:02:45.2]} 24. Qg3 {[%clk 0:02:33.4]} 24... Rh8 {[%clk 0:02:44.8]} 25.
Re1 {[%clk 0:02:27.6]} 25... Bd4 {[%clk 0:02:38.5]} 26. Re6 {[%clk 0:02:15.9]}
26... Nc8 {[%clk 0:02:19.2]} 27. Qe1 {[%clk 0:02:14.9]} 27... Bf2 {[%clk
0:02:16]} 28. Qe2 {[%clk 0:02:14.9]} 28... Qd4 {[%clk 0:02:00]} 29. d3 {[%clk
0:02:08]} 29... Bg1+ {[%clk 0:01:54.4]} 30. Kh1 {[%clk 0:02:07.6]} 30... Qb6
{[%clk 0:01:52.9]} 31. Bb2 {[%clk 0:01:56.1]} 31... Bd4 {[%clk 0:01:52.6]} 32.
Re1 {[%clk 0:01:53.1]} 32... Rd8 {[%clk 0:01:28.3]} 33. Rf6+ {[%clk 0:01:39]}
33... Bxf6 {[%clk 0:01:25.2]} 34. Qe6+ {[%clk 0:01:38.4]} 34... Kf8 {[%clk
0:01:22.1]} 35. Qxf6+ {[%clk 0:01:38]} 1-0

[Event "*** Titled Tuesday Blitz"]
[Site "Chess.com"]
[Date "2020.05.19"]
[Round "1"]
[White "babyking1205"]
[Black "Mimsychess"]
[Result "1-0"]
[WhiteElo "2560"]
[BlackElo "2260"]
[TimeControl "180+1"]
[EndTime "12:04:38 PDT"]
[Termination "babyking1205 won by resignation"]

1. e4 {[%clk 0:02:59.9]} 1... c5 {[%clk 0:02:57.2]} 2. Nf3 {[%clk 0:02:59.4]}
2... Nc6 {[%clk 0:02:57]} 3. d4 {[%clk 0:02:59]} 3... cxd4 {[%clk 0:02:57.9]} 4.
Nxd4 {[%clk 0:02:59.8]} 4... e5 {[%clk 0:02:57.8]} 5. Nb3 {[%clk 0:02:59.2]}
5... Nf6 {[%clk 0:02:56.8]} 6. Nc3 {[%clk 0:02:59.2]} 6... Bb4 {[%clk
0:02:56.8]} 7. Bd3 {[%clk 0:02:58.7]} 7... O-O {[%clk 0:02:52.9]} 8. O-O {[%clk
0:02:57]} 8... Bxc3 {[%clk 0:02:52.1]} 9. bxc3 {[%clk 0:02:55.5]} 9... d6 {[%clk
0:02:50.1]} 10. Bg5 {[%clk 0:02:45.7]} 10... h6 {[%clk 0:02:49.5]} 11. Bh4
{[%clk 0:02:44.1]} 11... Be6 {[%clk 0:02:47.1]} 12. Qf3 {[%clk 0:02:11.4]} 12...
g5 {[%clk 0:02:42.7]} 13. Bg3 {[%clk 0:02:09.2]} 13... Kg7 {[%clk 0:02:25.8]}
14. Qe3 {[%clk 0:02:01.3]} 14... Qb6 {[%clk 0:02:01.2]} 15. Qe2 {[%clk
0:01:58.4]} 15... Rfe8 {[%clk 0:01:46.8]} 16. Nd2 {[%clk 0:01:56.8]} 16... d5
{[%clk 0:01:40.2]} 17. exd5 {[%clk 0:01:55.5]} 17... Bxd5 {[%clk 0:01:41.1]} 18.
Ne4 {[%clk 0:01:52]} 18... Bxe4 {[%clk 0:01:25.6]} 19. Bxe4 {[%clk 0:01:52.9]}
19... Rad8 {[%clk 0:01:24.8]} 20. Rab1 {[%clk 0:01:49.8]} 20... Qc7 {[%clk
0:01:21.1]} 21. Bf5 {[%clk 0:01:48.5]} 21... Nd5 {[%clk 0:01:16.3]} 22. Qf3
{[%clk 0:01:42.3]} 22... Nf4 {[%clk 0:01:12.6]} 23. h4 {[%clk 0:01:40.4]} 23...
e4 {[%clk 0:01:09.7]} 24. Qg4 {[%clk 0:01:37.9]} 24... Ne5 {[%clk 0:01:09.1]}
25. Bxf4 {[%clk 0:01:36.1]} 25... Qxc3 {[%clk 0:01:04]} 26. Bxe5+ {[%clk
0:01:34.5]} 26... Rxe5 {[%clk 0:01:01.9]} 27. hxg5 {[%clk 0:01:34.1]} 1-0

[Event "*** Titled Tuesday Blitz"]
[Site "Chess.com"]
[Date "2020.05.19"]
[Round "1"]
[White "Rakesh"]
[Black "EvgenyRomanov"]
[Result "0-1"]
[WhiteElo "2362"]
[BlackElo "2679"]
[TimeControl "180+1"]
[EndTime "12:04:43 PDT"]
[Termination "EvgenyRomanov won by resignation"]

1. e4 {[%clk 0:03:00.9]} 1... e5 {[%clk 0:02:56.3]} 2. Nf3 {[%clk 0:02:59.6]}
2... Nc6 {[%clk 0:02:57.2]} 3. d4 {[%clk 0:02:59.2]} 3... exd4 {[%clk
0:02:56.6]} 4. Nxd4 {[%clk 0:03:00.1]} 4... Bc5 {[%clk 0:02:56.4]} 5. Nb3 {[%clk
0:02:56.1]} 5... Bb6 {[%clk 0:02:55.7]} 6. Nc3 {[%clk 0:02:53.3]} 6... d6 {[%clk
0:02:53.4]} 7. Qe2 {[%clk 0:02:47.4]} 7... a5 {[%clk 0:02:51.6]} 8. Be3 {[%clk
0:02:42.9]} 8... a4 {[%clk 0:02:50.5]} 9. Nd2 {[%clk 0:02:41]} 9... a3 {[%clk
0:02:45.9]} 10. b3 {[%clk 0:02:40.6]} 10... Qf6 {[%clk 0:02:31.2]} 11. Qd3
{[%clk 0:02:12.4]} 11... Ba5 {[%clk 0:02:17.5]} 12. Ndb1 {[%clk 0:01:59.8]}
12... Nge7 {[%clk 0:02:07.3]} 13. Be2 {[%clk 0:01:52.3]} 13... O-O {[%clk
0:02:06.3]} 14. O-O {[%clk 0:01:45.9]} 14... b5 {[%clk 0:02:01.6]} 15. f4 {[%clk
0:01:28.1]} 15... b4 {[%clk 0:01:52]} 16. e5 {[%clk 0:01:26.7]} 16... dxe5
{[%clk 0:01:48.5]} 17. Ne4 {[%clk 0:01:26.1]} 17... Qg6 {[%clk 0:01:45.7]} 18.
Nbd2 {[%clk 0:01:25.6]} 18... Rd8 {[%clk 0:01:35.6]} 0-1

[Event "*** Titled Tuesday Blitz"]
[Site "Chess.com"]
[Date "2020.05.19"]
[Round "1"]
[White "Ana_Berke"]
[Black "CheckThis4"]
[Result "0-1"]
[WhiteElo "2101"]
[BlackElo "2501"]
[TimeControl "180+1"]
[EndTime "12:04:43 PDT"]
[Termination "CheckThis4 won by resignation"]

1. e4 {[%clk 0:03:00.9]} 1... c6 {[%clk 0:02:59.6]} 2. d4 {[%clk 0:03:00]} 2...
d5 {[%clk 0:03:00.1]} 3. exd5 {[%clk 0:02:59.1]} 3... cxd5 {[%clk 0:02:59.8]} 4.
c4 {[%clk 0:02:59]} 4... Nf6 {[%clk 0:02:59.3]} 5. Nc3 {[%clk 0:02:57.7]} 5...
g6 {[%clk 0:02:59.4]} 6. Qb3 {[%clk 0:02:54.2]} 6... Bg7 {[%clk 0:02:59.6]} 7.
cxd5 {[%clk 0:02:54]} 7... O-O {[%clk 0:02:59.2]} 8. Be2 {[%clk 0:02:54.3]} 8...
Nbd7 {[%clk 0:02:57.9]} 9. Bf3 {[%clk 0:02:54.5]} 9... Nb6 {[%clk 0:02:57.3]}
10. Nge2 {[%clk 0:02:52.7]} 10... a5 {[%clk 0:02:57.8]} 11. O-O {[%clk
0:02:51.2]} 11... a4 {[%clk 0:02:57.2]} 12. Qb4 {[%clk 0:02:38.7]} 12... Nfxd5
{[%clk 0:02:49.4]} 13. Nxd5 {[%clk 0:02:36.7]} 13... Nxd5 {[%clk 0:02:50.3]} 14.
Bxd5 {[%clk 0:02:30.6]} 14... Qxd5 {[%clk 0:02:49.5]} 15. Qxe7 {[%clk
0:02:30.6]} 15... Bf5 {[%clk 0:02:39.6]} 16. Be3 {[%clk 0:02:29.5]} 16... Qb5
{[%clk 0:02:19]} 17. Ng3 {[%clk 0:02:21.6]} 17... Bd3 {[%clk 0:02:18.8]} 18.
Rfd1 {[%clk 0:02:19.7]} 18... Bc2 {[%clk 0:02:15.8]} 19. Rd2 {[%clk 0:02:04.5]}
19... Qxb2 {[%clk 0:02:12.3]} 20. Re1 {[%clk 0:02:03.7]} 20... Rfe8 {[%clk
0:02:00.8]} 21. Qd7 {[%clk 0:01:46.5]} 21... a3 {[%clk 0:01:51.3]} 22. d5 {[%clk
0:01:43]} 22... Bc3 {[%clk 0:01:41.4]} 23. Rxc2 {[%clk 0:01:26.5]} 23... Qxc2
{[%clk 0:01:40.4]} 24. Rf1 {[%clk 0:01:26.9]} 24... Qxa2 {[%clk 0:01:31.4]} 25.
Qxb7 {[%clk 0:01:25.9]} 25... Qc4 {[%clk 0:01:22.8]} 26. d6 {[%clk 0:01:22.7]}
26... a2 {[%clk 0:01:23.1]} 27. d7 {[%clk 0:01:22.7]} 27... Red8 {[%clk
0:01:16.6]} 0-1

[Event "*** Titled Tuesday Blitz"]
[Site "Chess.com"]
[Date "2020.05.19"]
[Round "1"]
[White "1stSecond"]
[Black "Popopuiyt"]
[Result "1-0"]
[WhiteElo "2707"]
[BlackElo "2372"]
[TimeControl "180+1"]
[EndTime "12:04:46 PDT"]
[Termination "1stSecond won by resignation"]

1. Nf3 {[%clk 0:03:00.9]} 1... Nf6 {[%clk 0:02:56.7]} 2. g3 {[%clk 0:03:00.7]}
2... g6 {[%clk 0:02:56.8]} 3. Bg2 {[%clk 0:03:01]} 3... Bg7 {[%clk 0:02:57.4]}
4. O-O {[%clk 0:03:01.3]} 4... O-O {[%clk 0:02:57.7]} 5. d4 {[%clk 0:03:01.9]}
5... d6 {[%clk 0:02:57.1]} 6. b3 {[%clk 0:03:01.3]} 6... c5 {[%clk 0:02:56.5]}
7. c4 {[%clk 0:02:59.5]} 7... Nc6 {[%clk 0:02:52.9]} 8. Bb2 {[%clk 0:02:58.7]}
8... cxd4 {[%clk 0:02:51.4]} 9. Nxd4 {[%clk 0:02:58.4]} 9... Bd7 {[%clk
0:02:51.7]} 10. Nc3 {[%clk 0:02:57.1]} 10... a6 {[%clk 0:02:49.9]} 11. e3 {[%clk
0:02:56.4]} 11... Rb8 {[%clk 0:02:49.1]} 12. Rc1 {[%clk 0:02:55.5]} 12... Nxd4
{[%clk 0:02:48.8]} 13. Qxd4 {[%clk 0:02:43.3]} 13... b5 {[%clk 0:02:49]} 14.
cxb5 {[%clk 0:02:32.4]} 14... axb5 {[%clk 0:02:49.9]} 15. Nd5 {[%clk 0:02:19.5]}
15... Nh5 {[%clk 0:02:27.1]} 16. Qd2 {[%clk 0:02:18.5]} 16... Bxb2 {[%clk
0:02:23.1]} 17. Qxb2 {[%clk 0:02:19.4]} 17... e6 {[%clk 0:02:21.8]} 18. Nb4
{[%clk 0:02:04.6]} 18... Qf6 {[%clk 0:02:21.3]} 19. Qd2 {[%clk 0:01:55.4]} 19...
d5 {[%clk 0:02:20.8]} 20. e4 {[%clk 0:01:55.1]} 20... dxe4 {[%clk 0:02:14.8]}
21. Qxd7 {[%clk 0:01:53.2]} 21... Rfd8 {[%clk 0:02:13.1]} 22. Qc6 {[%clk
0:01:49.7]} 22... Rd4 {[%clk 0:02:09.8]} 23. Qc5 {[%clk 0:01:44.2]} 23... Ra8
{[%clk 0:02:00.4]} 24. Nc6 {[%clk 0:01:42.9]} 24... Rd2 {[%clk 0:01:59.3]} 25.
a4 {[%clk 0:01:36]} 25... bxa4 {[%clk 0:01:58.8]} 26. Bxe4 {[%clk 0:01:35.3]}
26... Kg7 {[%clk 0:01:49.4]} 27. Ne5 {[%clk 0:01:23.4]} 27... Rad8 {[%clk
0:01:40.9]} 28. bxa4 {[%clk 0:01:19.5]} 28... R8d4 {[%clk 0:01:34.9]} 29. Nf3
{[%clk 0:01:10.9]} 1-0